[Event "1st Bangalore GM-Open-A 2024"]
[Site "Bangalore"]
[Date "2024.01.25"]
[Round "9.21"]
[White "Wagh Suyog"]
[Black "Vishnu Prasanna. V"]
[Result "1-0"]
[ECO "A08"]
[WhiteElo "2266"]
[BlackElo "2413"]
[Annotator "TA"]
[PlyCount "105"]
[EventDate "2024.01.20"]
[EventType "swiss"]
[EventCountry "IND"]
[SourceTitle "playchess.com"]
[Source "ChessBase"]
[SourceQuality "1"]
[TimeControl "5400+30"]

{[%evp 9,105,26,29,18,64,32,36,36,33,34,41,34,29,29,27,22,44,44,67,60,118,105,124,109,139,146,147,139,143,147,141,145,160,158,149,135,144,142,134,126,130,134,129,128,131,104,148,143,118,62,79,56,54,52,53,65,94,97,95,97,94,93,113,94,234,229,244,241,420,108,196,178,286,124,210,207,238,236,180,147,437,437,403,389,415,419,452,392,422,426,409,0,386,0,427,384,775,758]} 1. Nf3 {[%emt 0:00:52]} d5 {[%emt 0:00:11]} 2. g3 {[%emt 0:00:04]} Nf6 {[%emt 0:00:19]} 3. Bg2 {[%emt 0:01:03]} c5 {[%emt 0:00:23]} 4. O-O {[%emt 0:14:37]} h6 {[%emt 0:02:16]} 5. b3 {[%emt 0:12:34]} Bf5 {[%emt 0:05:03]} 6. Bb2 {[%emt 0:10:06]} Nbd7 {[%emt 0:03:03]} (6... e6 $11 {is more appropriate.}) 7. e3 {[%emt 0:00:39]} e6 {[%emt 0:01:58]} 8. d3 {[%emt 0:07:54][%cal Bd2d3,Bd3c4][%mdl 32] White is slightly better.} Be7 {[%emt 0:00:12]} 9. Qe2 {[%emt 0:00:28]} O-O {[%emt 0:00:15]} 10. c4 {[%emt 0:00:20]} Bh7 {[%emt 0:03:25]} 11. Rd1 {[%emt 0:01:19]} a6 {[%emt 0:04:57]} 12. Nc3 {[%emt 0:01:49]} dxc4 {[%emt 0:07:01]} 13. dxc4 {[%emt 0:07:37]} Qc7 {[%emt 0:05:59]} 14. e4 {[%emt 0:01:53]} e5 {[%emt 0:07:15]} ({Black should play} 14... Ng4 $14) 15. Bh3 {[%emt 0:09:45]} Rfd8 {[%emt 0:02:01]} 16. Rd2 {[%emt 0:05:39]} Bd6 {[%emt 0:04:49]} 17. Rad1 {[%emt 0:00:21]} Nf8 {[%emt 0:00:06]} 18. Nd5 {[%emt 0:02:09]} Nxd5 {[%emt 0:00:05]} 19. Rxd5 {[%emt 0:00:28]} f6 {[%emt 0:10:42]} 20. Nh4 {[%emt 0:00:21] White has more active pieces.} Be7 {[%emt 0:02:14]} 21. Bf5 {[%emt 0:06:47]} Rxd5 {[%emt 0:00:14]} 22. exd5 {[%emt 0:00:16][%cal Of2f4]} g6 {[%emt 0:02:36]} 23. Bc2 {[%emt 0:06:12][%cal Of2f4]} Bd6 {[%emt 0:00:09]} 24. Qe3 {[%emt 0:01:07]} Qg7 {[%emt 0:01:35]} 25. Re1 {[%emt 0:00:04]} Re8 {[%emt 0:02:59]} 26. Bc3 {[%emt 0:01:46]} Nd7 {[%emt 0:02:23]} 27. a4 {[%emt 0:00:08]} f5 {[%emt 0:01:03]} 28. f4 {[%emt 0:04:02]} Qf8 {[%emt 0:02:05]} 29. Bb2 {[%emt 0:01:34]} ({White should try} 29. g4 $16 {aiming for gxf5.} fxg4 30. Nxg6 (30. Bxg6 Bxg6 31. Nxg6 Qf5 $16)) 29... e4 {[%emt 0:03:21]} 30. Qc3 {[%emt 0:00:09] Intending Qh8+ and mate.} Kf7 {[%emt 0:00:04]} 31. Ng2 $36 {[%emt 0:00:25][%mdl 2048] White is pushing.} Be7 {[%emt 0:02:59] ...Bf6 is the strong threat.} 32. Qd2 {[%emt 0:01:36]} Bf6 {[%emt 0:00:19]} 33. Bxf6 {[%emt 0:00:08]} Nxf6 {[%emt 0:00:03]} 34. Ne3 {[%emt 0:00:41]} Qd6 {[%emt 0:00:09]} 35. a5 {[%emt 0:00:16]} Rg8 {[%emt 0:08:44]} 36. Rf1 {[%emt 0:00:09][%cal Ob3b4]} Ne8 {[%emt 0:00:07]} (36... Rb8 $16) 37. Qc3 {[%emt 0:00:33]} Qf6 {[%emt 0:00:25] [#]} 38. Qe5 {[%emt 0:01:08]} g5 $2 {[%emt 0:07:59]} (38... Qd6 {might work better.} 39. Kg2 h5) 39. Qxf6+ $2 {[%emt 0:01:29]} (39. Ng4 $18 Qxe5 (39... fxg4 $2 {loses.} 40. fxg5 $18) 40. fxe5) 39... Nxf6 {[%emt 0:01:38]} (39... Kxf6 $16 40. fxg5+ Ke5) 40. Bd1 {[%emt 0:00:21]} g4 {[%emt 0:00:56] [#]} (40... Ne8 {was necessary.} 41. fxg5 Rxg5) 41. Kf2 {[%emt 0:00:29]} (41. b4 $1 $18 {and the rest is easy.}) 41... Rc8 {[%emt 0:00:26]} (41... Ke7 $16 {was worth a try.} 42. Bc2 Rg7) 42. Be2 $18 {[%emt 0:00:33]} Ne8 {[%emt 0:00:13][%cal Bf6e8,Be8d6,Bd6b5][%mdl 32]} 43. Rb1 {[%emt 0:00:15]} Nd6 {[%emt 0:00:08]} 44. Ke1 {[%emt 0:00:23]} Rb8 $2 {[%emt 0:02:34][%mdl 8192]} (44... b5 $16) 45. b4 {[%emt 0:00:45]} Rc8 {[%emt 0:00:05]} 46. Kd2 {[%emt 0:00:40]} cxb4 {[%emt 0:00:16]} 47. Rxb4 {[%emt 0:00:01]} Ke7 {[%emt 0:00:04]} 48. Kc3 {[%emt 0:01:21] Hoping for Kd4.} Nb5+ {[%emt 0:00:13]} 49. Kb2 {[%emt 0:00:36]} Nd6 {[%emt 0:00:03]} 50. Kc3 {[%emt 0:00:04] Black must now prevent Kd4.} Nb5+ {[%emt 0:00:24]} 51. Kb2 {[%emt 0:00:01]} Nd6 {[%emt 0:00:04]} 52. Ka3 {[%emt 0:00:19]} Bg6 $2 {[%emt 0:00:13]} (52... Rc5 53. Ka4 b5+ 54. axb6 Nb7) 53. Rb6 {[%emt 0:00:16] Weighted Error Value: White=0.37/Black=0.33.  Loses game:     	---       	Black=1      Missed win:     	White=2     	---        Mistake:       	White=1     	Black=8      Inaccurate:     	White=1     	Black=2      OK:         	White=19    	Black=16     Best:        	White=2     	Black=2} 1-0

[Event "1st Bangalore GM-Open-A 2024"]
[Site "Bangalore"]
[Date "2024.01.25"]
[Round "9.22"]
[White "Viani Antonio Dcunha"]
[Black "Rajarishi Karthi"]
[Result "1-0"]
[ECO "C02"]
[WhiteElo "2407"]
[BlackElo "2183"]
[Annotator "TA"]
[PlyCount "103"]
[EventDate "2024.01.20"]
[EventType "swiss"]
[EventCountry "IND"]
[SourceTitle "playchess.com"]
[Source "ChessBase"]
[SourceQuality "1"]
[TimeControl "5400+30"]

{[%evp 14,103,4,7,34,33,31,25,42,0,0,0,54,53,48,52,68,42,45,32,60,57,85,79,90,54,45,43,75,54,72,16,70,84,93,80,78,69,83,67,70,68,177,168,176,164,232,77,130,113,183,112,181,194,329,333,458,443,533,533,409,329,493,165,158,0,466,447,770,698,714,686,669,634,1444,1481,1573,1513,1431,1083,1387,1378,1584,1255,1184,1219,1114,1005,4284,2772,2062,1710]} 1. e4 {[%emt 0:02:06][%cal Be2e4,Be4e5][%mdl 32]} e6 {[%emt 0:01:08]} 2. d4 {[%emt 0:00:09]} d5 {[%emt 0:00:17]} 3. e5 {[%emt 0:00:16]} c5 {[%emt 0:01:19]} 4. c3 {[%emt 0:00:10]} Nc6 {[%emt 0:00:17]} 5. Nf3 {[%emt 0:00:17]} Nge7 {[%emt 0:00:38]} 6. Na3 {[%emt 0:00:22][%cal Bb1a3,Ba3c2,Bc2e3][%mdl 32]} Nf5 {[%emt 0:03:13]} 7. Nc2 {[%emt 0:00:28]} cxd4 {[%emt 0:03:13]} 8. cxd4 {[%emt 0:00:14]} Nh4 {[%emt 0:04:59]} 9. Nxh4 {[%emt 0:24:15]} Qxh4 {[%emt 0:00:27]} 10. Be2 {[%emt 0:00:30]} Nb4 {[%emt 0:12:22] White has an edge.} 11. Ne3 {[%emt 0:04:41]} Nc6 {[%emt 0:01:22]} 12. Nc2 {[%emt 0:02:06]} Nb4 {[%emt 0:00:31]} 13. O-O {[%emt 0:06:29]} Nxc2 {[%emt 0:01:27]} 14. Qxc2 {[%emt 0:01:08] aiming for Bb5+.} Qd8 {[%emt 0:00:56]} 15. Be3 {[%emt 0:06:03] White is much more active.} Be7 {[%emt 0:09:48]} 16. Bd3 {[%emt 0:01:31]} g6 {[%emt 0:04:33]} 17. Bh6 {[%emt 0:06:03]} Bd7 {[%emt 0:03:38]} 18. Qd2 {[%emt 0:02:33]} Qb6 {[%emt 0:04:27]} 19. Qe3 {[%emt 0:08:04]} f5 {[%emt 0:03:34][%cal Oh8g8]} 20. Rfc1 {[%emt 0:06:38]} Bc6 {[%emt 0:09:01][%cal Oe8f7]} 21. Rc2 {[%emt 0:00:43]} Kd7 {[%emt 0:01:02]} 22. Rac1 {[%emt 0:07:13]} (22. Bg7 $16) 22... Rac8 {[%emt 0:01:16]} (22... Rhc8 $11) 23. Bg7 $14 {[%emt 0:03:50]} Rhg8 {[%emt 0:02:47]} 24. Bf6 {[%emt 0:00:07]} Rgf8 {[%emt 0:06:08]} 25. Bxe7 {[%emt 0:02:24]} Kxe7 {[%emt 0:00:09]} 26. Qf4 {[%emt 0:01:34] Qh4+ would now be deadly.} Kf7 {[%emt 0:01:46]} 27. h4 {[%emt 0:00:56][%cal Oa2a4,Bh2h4,Bh4h5][%mdl 32]} Bd7 {[%emt 0:02:20] [#]} (27... Kg8 $14) 28. h5 $1 $18 {[%emt 0:02:06][%mdl 512] Qh6 is the strong threat.} Rxc2 {[%emt 0:00:10]} 29. Rxc2 {[%emt 0:00:13] Threatens to win with Qh6.} (29. Bxc2 Qxb2 30. Qh6 Ke8 $11) 29... Bc6 {[%emt 0:02:56]} (29... Kg8 $142 30. Be2 Qd8 31. hxg6 hxg6) 30. b3 $2 {[%emt 0:09:07]} (30. Qh6 $18 Qxd4 31. Qxh7+ Ke8 32. Qxg6+ Kd8 33. Qg7) 30... Rg8 {[%emt 0:01:43]} ({Black should try} 30... Kg7) 31. Rc5 $16 {[%emt 0:01:06][%cal Ob3b4]} Qd8 {[%emt 0:01:09]} (31... g5 $16 32. Qd2 h6) 32. Be2 {[%emt 0:00:34]} (32. b4 $1 $18 {Strongly threatening Qc1.} gxh5 33. Qh6) 32... g5 {[%emt 0:00:41]} (32... gxh5 $16 {might work better.} 33. Bxh5+ Kg7) 33. Qc1 $18 {[%emt 0:00:03]} h6 {[%emt 0:00:52]} (33... Qb6 {keeps fighting.} 34. Qc3 g4) 34. b4 {[%emt 0:00:11][%cal Bb3b4,Bb4b5][%mdl 32]} Rg7 {[%emt 0:03:34]} 35. b5 {[%emt 0:00:12]} Be8 {[%emt 0:00:18]} 36. Rc8 {[%emt 0:01:34]} Qb6 {[%emt 0:00:57]} 37. Qc5 {[%emt 0:01:43]} g4 {[%emt 0:05:56]} (37... Qxc5 $142 38. dxc5 Kf8) 38. Rc7+ $2 {[%emt 0:00:13]} (38. Ra8 Qxc5 39. dxc5) 38... Kg8 {[%emt 0:00:07]} 39. Rc8 $40 {[%emt 0:00:14][%mdl 128] White attacks.} (39. Qxb6 $16 axb6 40. Rc8) 39... Kf7 {[%emt 0:00:31]} 40. g3 {[%emt 0:00:11] White is clearly winning.} f4 {[%emt 0:03:31]} (40... Qxc5 $142 41. dxc5 Kf8) 41. gxf4 {[%emt 0:00:40] Hoping for Rc7+.} g3 {[%emt 0:00:25]} 42. Rc7+ {[%emt 0:01:00]} Kg8 {[%emt 0:00:13][%cal Bf7g8,Bg8g7,Bg7f8][%mdl 32]} 43. Rxg7+ {[%emt 0:00:30]} Kxg7 {[%emt 0:00:10]} 44. Qxb6 {[%emt 0:00:51] Threatening mate with Qc7+.} gxf2+ {[%emt 0:00:06]} 45. Kxf2 {[%emt 0:00:02]} axb6 {[%emt 0:00:08][%mdl 4096] Endgame. KB-KB} 46. a4 {[%emt 0:00:16]} Bf7 {[%emt 0:00:19]} 47. Bg4 {[%emt 0:00:29]} Kf8 {[%emt 0:00:10]} 48. Kg3 {[%emt 0:01:02]} Ke7 {[%emt 0:00:30]} 49. Kh4 {[%emt 0:00:28]} Bg8 {[%emt 0:00:10]} 50. f5 {[%emt 0:00:23][%cal Bf4f5,Bf5f6][%mdl 32]} Bh7 {[%emt 0:01:38] [#]} 51. f6+ $1 {[%emt 0:00:07]} ({Worse is} 51. fxe6 Bc2 $11) 51... Kf7 {[%emt 0:00:09] [#]} 52. Bd1 $1 {[%emt 0:00:10] Weighted Error Value: White=0.36/Black=0.39.  Mistake:       	White=5     	Black=9      Inaccurate:     	White=2     	Black=4      OK:         	White=15    	Black=9      Best:        	White=1     	Black=1} 1-0

[Event "1st Bangalore GM-Open-A 2024"]
[Site "Bangalore"]
[Date "2024.01.25"]
[Round "9.23"]
[White "Prasad, Devaki V"]
[Black "Thilakarathne, G M H"]
[Result "1/2-1/2"]
[ECO "B43"]
[WhiteElo "2229"]
[BlackElo "2391"]
[Annotator "TA"]
[PlyCount "61"]
[EventDate "2024.01.20"]
[EventType "swiss"]
[EventCountry "IND"]
[SourceTitle "playchess.com"]
[Source "ChessBase"]
[SourceQuality "1"]
[TimeControl "5400+30"]

{[%evp 16,61,0,0,28,12,51,43,125,127,197,88,124,113,136,123,142,126,113,138,129,46,47,12,12,0,8,22,31,20,85,43,32,39,41,0,56,0,68,49,52,56,73,0,45,0,75,0]} 1. e4 {[%emt 0:00:06]} c5 {[%emt 0:00:05]} 2. Nc3 {[%emt 0:00:14]} a6 {[%emt 0:00:15]} 3. Nf3 {[%emt 0:01:59]} b5 {[%emt 0:02:59]} 4. d4 {[%emt 0:00:47]} cxd4 {[%emt 0:00:27]} 5. Nxd4 {[%emt 0:00:04]} Bb7 {[%emt 0:00:19]} 6. Bd3 {[%emt 0:00:57]} e6 {[%emt 0:02:16]} 7. O-O {[%emt 0:01:54]} Qc7 {[%emt 0:01:42]} 8. a3 {[%emt 0:09:07]} Nf6 {[%emt 0:07:00]} 9. Kh1 {[%emt 0:02:32]} h5 {[%emt 0:02:42]} 10. f4 {[%emt 0:01:00]} Ng4 {[%emt 0:04:03]} (10... h4 {vereinfacht} 11. h3 Nc6 12. Be3 Nxd4 13. Bxd4 Be7) 11. Qe2 {[%emt 0:07:09]} g5 {[%emt 0:16:06]} 12. e5 $16 {[%emt 0:01:47]} (12. fxg5 $2 Qxh2#) 12... Qb6 {[%emt 0:31:21]} (12... Nc6 $16) 13. Nb3 {[%emt 0:03:35]} (13. Nf3 $18) 13... Bg7 {[%emt 0:07:53]} 14. Ne4 {[%emt 0:08:12]} (14. fxg5 Qc7 $14) 14... Bxe4 {[%emt 0:01:23]} 15. Bxe4 {[%emt 0:01:07]} (15. Qxe4 $6 Nc6 $14) 15... Nc6 {[%emt 0:00:14]} 16. a4 {[%emt 0:00:25] [#] Droht stark axb5.} Rc8 {[%emt 0:02:54]} 17. axb5 {[%emt 0:00:54]} (17. fxg5 bxa4 18. Rxa4 Qb5 19. Qxb5 (19. Rxa6 $2 Qxe2 20. Bd3 Nf2+ 21. Kg1 Nxd3 $19) 19... axb5 $15) 17... axb5 {[%emt 0:00:11]} 18. c3 {[%emt 0:12:18]} (18. fxg5 Ncxe5 19. h3 f5 20. gxf6 Nxf6 $16) (18. g3 $16) 18... gxf4 $14 {[%emt 0:05:26]} 19. Bxc6 {[%emt 0:00:34]} (19. Bxf4 $5 Ncxe5 20. h3 $14) 19... Qxc6 {[%emt 0:00:35]} 20. Bxf4 {[%emt 0:02:08] Droht Nd2 und aus.} Qc4 {[%emt 0:00:15]} 21. Qd1 {[%emt 0:02:18]} (21. Qxc4 bxc4 22. Nd2 Nxe5 $19 (22... Bxe5 23. Nxc4 Bxf4 24. Rxf4 $11)) 21... Nxe5 {[%emt 0:02:06]} 22. Qd6 {[%emt 0:05:32]} Qxb3 {[%emt 0:04:56]} (22... Qc7 $11 {hält das Gleichgewicht.} 23. Qd4 h4) 23. Bxe5 {[%emt 0:00:41]} Bxe5 {[%emt 0:01:50]} 24. Qxe5 {[%emt 0:00:09]} Rf8 {[%emt 0:00:37]} 25. Rf2 {[%emt 0:01:50][%cal Of2d2][%mdl 1024] Weiss hat Kompensation.} h4 {[%emt 0:00:47]} (25... b4 $11) 26. h3 {[%emt 0:00:15]} ({Vorzuziehen ist} 26. Rd2 $14 Qc4 27. Rd4) 26... Qc4 {[%emt 0:01:21]} (26... b4 $11) 27. Rf4 {[%emt 0:03:52]} Qc5 {[%emt 0:00:26]} 28. Qf6 {[%emt 0:03:32]} Qe7 {[%emt 0:01:46]} 29. Qe5 {[%emt 0:00:24] Weiß steht deutlich aktiver.} (29. Qxh4 Qxh4 30. Rxh4 Ke7 $18) 29... Qc5 $1 {[%emt 0:00:16]} 30. Qf6 {[%emt 0:11:56]} Qe7 {[%emt 0:00:01]} 31. Qe5 {[%emt 0:00:09] Schwarz hat sich erfolgreich gewehrt.   Gewichteter Fehlerwert: Weiß=0.30/Schwarz=0.24 (präzise) .  Fehler:       	Weiß=4     	Schwarz=5     Ungenau:       	Weiß=4     	Schwarz=2     OK:         	Weiß=8     	Schwarz=5     Bester:       	---       	Schwarz=4     Stark:        	---       	Schwarz=1} (31. Qxh4 Qxh4 32. Rxh4 Ke7 $16) ({Besser ist} 31. Qh6 $16) 1/2-1/2

[Event "1st Bangalore GM-Open-A 2024"]
[Site "Bangalore"]
[Date "2024.01.25"]
[Round "9.24"]
[White "Aradhya, Garg"]
[Black "Nguyen Thanh Thuy Tien"]
[Result "1-0"]
[ECO "D85"]
[WhiteElo "2390"]
[BlackElo "2118"]
[Annotator "TA"]
[PlyCount "83"]
[EventDate "2024.01.20"]
[EventType "swiss"]
[EventCountry "IND"]
[SourceTitle "playchess.com"]
[Source "ChessBase"]
[SourceQuality "1"]
[TimeControl "5400+30"]

{[%evp 16,83,31,11,41,34,39,36,43,36,49,41,26,31,25,27,32,30,36,19,34,34,41,36,68,62,64,75,69,67,67,58,77,72,80,39,82,58,58,58,61,62,62,67,139,144,396,299,258,272,2420,2387,2253,2235,29973,29974,29974,29975,29973,29976,29972,29969,29983,29984,29984,29985,29985,29986,29985,29985]} 1. d4 {[%emt 0:00:02]} Nf6 {[%emt 0:00:15]} 2. c4 {[%emt 0:00:26]} g6 {[%emt 0:00:29]} 3. Nc3 {[%emt 0:00:36]} d5 {[%emt 0:00:08]} 4. Nf3 {[%emt 0:00:38]} Bg7 {[%emt 0:00:09]} 5. cxd5 {[%emt 0:00:16]} Nxd5 {[%emt 0:00:11]} 6. e4 {[%emt 0:00:05]} Nxc3 {[%emt 0:00:08]} 7. bxc3 {[%emt 0:00:03]} c5 {[%emt 0:00:08]} 8. Bb5+ {[%emt 0:00:15]} Bd7 {[%emt 0:01:12]} 9. Rb1 {[%emt 0:03:21]} cxd4 {[%emt 0:10:18]} 10. cxd4 {[%emt 0:01:50]} Qa5+ {[%emt 0:01:50]} 11. Qd2 {[%emt 0:06:56]} Qxd2+ {[%emt 0:00:13] White is slightly better.} 12. Bxd2 {[%emt 0:00:02]} b6 {[%emt 0:10:19]} 13. Ke2 {[%emt 0:04:21]} Bxb5+ {[%emt 0:11:23]} 14. Rxb5 {[%emt 0:03:55]} Nc6 {[%emt 0:00:26]} 15. d5 {[%emt 0:18:21]} Nd4+ {[%emt 0:01:08]} 16. Nxd4 {[%emt 0:00:02]} Bxd4 {[%emt 0:00:12][%cal Bg7d4,Bd4c5,Bc5d6][%mdl 32]} 17. Rc1 {[%emt 0:02:42]} Kd7 {[%emt 0:00:23]} 18. Rb4 {[%emt 0:00:38]} Bc5 {[%emt 0:01:39]} 19. Rbc4 {[%emt 0:00:03]} e6 {[%emt 0:03:50]} 20. dxe6+ {[%emt 0:01:08]} Kxe6 {[%emt 0:00:28]} 21. Be3 {[%emt 0:00:17]} Bd6 {[%emt 0:17:25]} 22. f4 {[%emt 0:00:39]} f6 {[%emt 0:05:27]} 23. g3 {[%emt 0:02:46]} h5 {[%emt 0:08:19]} 24. Bd4 {[%emt 0:03:12] Black must now prevent Rc6.} Rhe8 {[%emt 0:04:57]} 25. Rc6 {[%emt 0:03:17] aiming for e5.} Rad8 {[%emt 0:00:36]} 26. Kf2 {[%emt 0:11:20] White is more active.} Kf7 {[%emt 0:01:32] [#]} 27. Bxf6 $1 {[%emt 0:00:25]} Kxf6 {[%emt 0:03:09]} 28. e5+ {[%emt 0:00:03]} Kf5 {[%emt 0:07:39]} 29. exd6 $14 {[%emt 0:01:18][%mdl 4096] Endgame. KRR-KRR} Re6 {[%emt 0:01:59]} ({Black should play} 29... Rd7 $14) 30. Rd1 $16 {[%emt 0:00:55]} Kg4 $2 {[%emt 0:02:50][%mdl 8192] [#] Loses the game.} (30... Ke4 $16 {was necessary.} 31. Rc4+ Kf5) 31. h3+ $1 {[%emt 0:01:09][%mdl 512]} Kf5 {[%emt 0:00:56]} 32. Kf3 {[%emt 0:00:32]} Rd7 $2 {[%emt 0:01:00]} (32... b5 33. g4+ Kf6) 33. Rc7 {[%emt 0:04:20]} Rxc7 {[%emt 0:02:01]} 34. g4+ {[%emt 0:00:30]} ({Weaker is} 34. dxc7 Rc6 $16) 34... hxg4+ {[%emt 0:00:31]} 35. hxg4+ {[%emt 0:00:02] White mates.} Kf6 {[%emt 0:00:06]} 36. dxc7 {[%emt 0:00:05] KR-KR} Rc6 {[%emt 0:00:09] [#]} 37. Rd6+ $3 {[%emt 0:00:15][%mdl 512]} Rxd6 {[%emt 0:00:03]} 38. c8=Q {[%emt 0:00:07]} ({And not} 38. c8=R g5 $17) 38... a5 {[%emt 0:00:36]} 39. Qf8+ {[%emt 0:00:54]} Ke6 {[%emt 0:00:03]} 40. f5+ {[%emt 0:00:02]} gxf5 {[%emt 0:00:08]} 41. gxf5+ {[%emt 0:00:02][%cal Bg4f5,Bf5f6][%mdl 32]} Kd5 {[%emt 0:00:06]} 42. f6 {[%emt 0:00:07] Weighted Error Value: White=0.10 (very precise) /Black=0.42.  Loses game:     	---       	Black=1      Mistake:       	---       	Black=2      Inaccurate:     	White=1     	Black=2      OK:         	White=9     	Black=9      Best:        	White=3     	Black=1} 1-0

[Event "1st Bangalore GM-Open-A 2024"]
[Site "Bangalore"]
[Date "2024.01.25"]
[Round "9.26"]
[White "Daaevik Wadhawan"]
[Black "Subhayan Kundu"]
[Result "1/2-1/2"]
[ECO "A30"]
[WhiteElo "1997"]
[BlackElo "2385"]
[Annotator "RC"]
[PlyCount "101"]
[EventDate "2024.01.20"]
[EventType "swiss"]
[EventCountry "IND"]
[SourceTitle "playchess.com"]
[Source "ChessBase"]
[SourceQuality "1"]
[TimeControl "5400+30"]

1. Nf3 {[%emt 0:00:37]} Nf6 {[%emt 0:02:44]} 2. g3 {[%emt 0:00:10]} g6 {[%emt 0:00:19]} 3. b3 {[%emt 0:00:02]} c5 {[%emt 0:01:16]} 4. Bb2 {[%emt 0:00:18]} Bg7 {[%emt 0:00:14]} 5. c4 {[%emt 0:01:30]} b6 {[%emt 0:01:27]} 6. Bg2 {[%emt 0:02:07]} Bb7 {[%emt 0:00:02]} 7. O-O {[%emt 0:00:24]} O-O {[%emt 0:00:06]} 8. d4 {[%emt 0:00:14]} cxd4 {[%emt 0:01:09]} 9. Qxd4 {[%emt 0:03:54]} Nc6 {[%emt 0:00:12]} 10. Qd2 {[%emt 0:03:22]} d5 {[%emt 0:02:27]} 11. cxd5 {[%emt 0:02:51]} Qxd5 {[%emt 0:02:23]} 12. Nd4 {[%emt 0:18:24]} Ne4 {[%emt 0:04:08]} 13. Nxc6 {[%emt 0:04:31]} Qxc6 {[%emt 0:01:05]} 14. Bxg7 {[%emt 0:00:59]} Kxg7 {[%emt 0:00:05]} 15. Qb2+ {[%emt 0:10:17]} Qf6 {[%emt 0:01:13]} 16. Qxf6+ {[%emt 0:00:28]} Kxf6 {[%emt 0:00:10]} 17. Rd1 {[%emt 0:09:18]} Rfd8 {[%emt 0:13:35]} 18. Nd2 {[%emt 0:01:57]} Rxd2 {[%emt 0:07:35]} 19. Rxd2 {[%emt 0:00:14]} Nxd2 {[%emt 0:00:02]} 20. Bf3 {[%emt 0:00:02]} Be4 21. Bxe4 {[%emt 0:00:31]} Rb8 {[%emt 0:00:36]} 22. Bc6 {[%emt 0:11:52]} Rc8 {[%emt 0:00:25]} 23. Bb5 {[%emt 0:00:08]} Ne4 {[%emt 0:03:48]} 24. f3 {[%emt 0:03:36]} Nc3 {[%emt 0:04:42]} 25. Bd3 {[%emt 0:01:17]} Ke5 {[%emt 0:08:37]} 26. Kf2 {[%emt 0:02:56]} Kd4 {[%emt 0:00:35]} 27. a3 {[%emt 0:02:48]} b5 {[%emt 0:14:23]} 28. g4 {[%emt 0:07:54]} h6 {[%emt 0:07:32]} 29. h4 {[%emt 0:00:19]} Rc7 {[%emt 0:01:57]} 30. Re1 {[%emt 0:06:22]} e5 {[%emt 0:02:31]} 31. Bc2 {[%emt 0:01:02]} Rd7 {[%emt 0:06:00]} 32. Rc1 {[%emt 0:00:57]} Rc7 {[%emt 0:01:45]} 33. e3+ {[%emt 0:01:16]} Kd5 {[%emt 0:02:39]} 34. Bd3 {[%emt 0:01:15]} a5 {[%emt 0:01:29]} 35. Ke1 {[%emt 0:02:03]} Kd6 {[%emt 0:03:59]} 36. Kd2 {[%emt 0:01:33]} b4 {[%emt 0:00:04]} 37. axb4 {[%emt 0:00:10]} axb4 {[%emt 0:00:03]} 38. Ra1 {[%emt 0:00:04]} Nd5 {[%emt 0:04:16]} 39. Ra6+ {[%emt 0:01:02]} Rc6 {[%emt 0:00:12]} 40. Rxc6+ {[%emt 0:00:40]} Kxc6 {[%emt 0:00:01]} 41. g5 {[%emt 0:00:01]} hxg5 {[%emt 0:00:20]} 42. hxg5 {[%emt 0:00:01]} Nc7 {[%emt 0:02:49]} 43. Bc4 {[%emt 0:01:55]} Ne6 {[%emt 0:00:05]} 44. Bxe6 {[%emt 0:00:27]} fxe6 {[%emt 0:00:02]} 45. Kd3 {[%emt 0:00:36]} Kd5 {[%emt 0:00:09]} 46. e4+ {[%emt 0:00:15]} Kc5 {[%emt 0:00:04]} 47. Ke3 {[%emt 0:00:22]} Kd6 {[%emt 0:00:18]} 48. Ke2 {[%emt 0:00:25]} Kc6 {[%emt 0:00:15]} 49. Kd3 {[%emt 0:00:12]} Kc5 {[%emt 0:00:04]} 50. Ke3 {[%emt 0:00:04]} Kd6 {[%emt 0:00:05]} 51. f4 {[%emt 0:00:31]} 1/2-1/2